[Event "Late-Titled-Tuesday-Blitz-June-04-2024"]
[Site "Chess.com"]
[Date "2024.06.04"]
[Round "11"]
[White "HajiyevKanan"]
[Black "jk13"]
[Result "0-1"]
[WhiteElo "2517"]
[BlackElo "2680"]
[TimeControl "180+1"]
[EndTime "16:06:58 PDT"]
[Termination "jk13 won by checkmate"]

1. d4 {[%clk 0:03:00.9]} 1... Nf6 {[%clk 0:02:59.8]} 2. Nf3 {[%clk 0:02:59.5]}
2... e6 {[%clk 0:03:00.4]} 3. c4 {[%clk 0:02:59.5]} 3... Bb4+ {[%clk 0:02:59.7]}
4. Bd2 {[%clk 0:02:59.6]} 4... Bxd2+ {[%clk 0:03:00.1]} 5. Qxd2 {[%clk
0:03:00.5]} 5... O-O {[%clk 0:03:00.2]} 6. Nc3 {[%clk 0:03:00.4]} 6... d5 {[%clk
0:03:01.1]} 7. cxd5 {[%clk 0:03:00.3]} 7... exd5 {[%clk 0:03:00.8]} 8. e3 {[%clk
0:03:00.7]} 8... Bf5 {[%clk 0:02:57.4]} 9. Bd3 {[%clk 0:02:57.5]} 9... Bxd3
{[%clk 0:02:57.5]} 10. Qxd3 {[%clk 0:02:58.4]} 10... c6 {[%clk 0:02:57.9]} 11.
O-O {[%clk 0:02:58.5]} 11... Nbd7 {[%clk 0:02:58.6]} 12. Rab1 {[%clk 0:02:58.6]}
12... a5 {[%clk 0:02:56.5]} 13. Qc2 {[%clk 0:02:58.8]} 13... Re8 {[%clk
0:02:55.8]} 14. Rfc1 {[%clk 0:02:57.1]} 14... Qe7 {[%clk 0:02:55.5]} 15. Qf5
{[%clk 0:02:56.4]} 15... g6 {[%clk 0:02:54.1]} 16. Qg5 {[%clk 0:02:56.6]} 16...
Kg7 {[%clk 0:02:51.9]} 17. Nh4 {[%clk 0:02:55.9]} 17... Kh8 {[%clk 0:02:51.4]}
18. h3 {[%clk 0:02:53.6]} 18... Nb6 {[%clk 0:02:39.6]} 19. Nf3 {[%clk 0:02:50]}
19... Nc4 {[%clk 0:02:29.9]} 20. b3 {[%clk 0:02:36.7]} 20... Nd6 {[%clk
0:02:29.9]} 21. Ne5 {[%clk 0:02:33.6]} 21... Kg7 {[%clk 0:02:27.3]} 22. Rb2
{[%clk 0:02:24.6]} 22... Qe6 {[%clk 0:02:20.4]} 23. Rbc2 {[%clk 0:02:13.1]}
23... Nd7 {[%clk 0:02:00.5]} 24. Nxd7 {[%clk 0:02:00.9]} 24... Qxd7 {[%clk
0:02:01.4]} 25. Na4 {[%clk 0:01:56.5]} 25... Ne4 {[%clk 0:01:54.3]} 26. Qh4
{[%clk 0:01:55.5]} 26... Qd6 {[%clk 0:01:50.9]} 27. Nc5 {[%clk 0:01:53.7]} 27...
Re7 {[%clk 0:01:46.9]} 28. Nxe4 {[%clk 0:01:50.1]} 28... Rxe4 {[%clk 0:01:44.5]}
29. g4 {[%clk 0:01:37.5]} 29... h5 {[%clk 0:01:44.4]} 30. Kg2 {[%clk 0:01:29]}
30... Rh8 {[%clk 0:01:35.3]} 31. Qg3 {[%clk 0:01:27.9]} 31... Qe6 {[%clk
0:01:29.8]} 32. Kf3 {[%clk 0:01:03.3]} 32... hxg4+ {[%clk 0:01:01.8]} 33. hxg4
{[%clk 0:01:02.8]} 33... Rxg4 {[%clk 0:00:52.8]} 34. Qxg4 {[%clk 0:01:01]} 34...
Rh3+ {[%clk 0:00:52.8]} 35. Qxh3 {[%clk 0:00:43.6]} 35... Qxh3+ {[%clk
0:00:53.7]} 36. Ke2 {[%clk 0:00:44.4]} 36... Qg4+ {[%clk 0:00:53.7]} 37. Kf1
{[%clk 0:00:37.2]} 37... Kf6 {[%clk 0:00:52]} 38. b4 {[%clk 0:00:36.5]} 38...
axb4 {[%clk 0:00:51.3]} 39. Rb2 {[%clk 0:00:35.7]} 39... Qe4 {[%clk 0:00:46.3]}
40. Ke2 {[%clk 0:00:32.7]} 40... Qg4+ {[%clk 0:00:44.7]} 41. Kf1 {[%clk
0:00:32.8]} 41... Qf3 {[%clk 0:00:41.5]} 42. Rcc2 {[%clk 0:00:26.4]} 42... g5
{[%clk 0:00:39.9]} 43. Rxb4 {[%clk 0:00:25.3]} 43... Qd1+ {[%clk 0:00:39.9]} 44.
Kg2 {[%clk 0:00:19.5]} 44... Qxc2 {[%clk 0:00:40.8]} 45. Rxb7 {[%clk 0:00:18.4]}
45... Qxa2 {[%clk 0:00:40.6]} 46. Rb6 {[%clk 0:00:19]} 46... Qc2 {[%clk
0:00:40]} 47. Kg3 {[%clk 0:00:18.8]} 47... Kg6 {[%clk 0:00:38.5]} 48. Ra6 {[%clk
0:00:18.4]} 48... f5 {[%clk 0:00:38.5]} 49. Ra8 {[%clk 0:00:18.8]} 49... f4+
{[%clk 0:00:37.7]} 50. exf4 {[%clk 0:00:19.3]} 50... gxf4+ {[%clk 0:00:38.4]}
51. Kxf4 {[%clk 0:00:19.6]} 51... Qe4+ {[%clk 0:00:38.1]} 52. Kg3 {[%clk
0:00:20.3]} 52... Qxd4 {[%clk 0:00:38.6]} 53. Ra6 {[%clk 0:00:19.6]} 53... Qc3+
{[%clk 0:00:37.9]} 54. f3 {[%clk 0:00:19]} 54... Kf5 {[%clk 0:00:37.6]} 55. Ra8
{[%clk 0:00:17.6]} 55... Qg7+ {[%clk 0:00:37]} 56. Kf2 {[%clk 0:00:17.6]} 56...
d4 {[%clk 0:00:35.9]} 57. Ra5+ {[%clk 0:00:17.4]} 57... Kf4 {[%clk 0:00:36.2]}
58. Ra3 {[%clk 0:00:15.9]} 58... Qg3+ {[%clk 0:00:35.1]} 59. Ke2 {[%clk
0:00:16.6]} 59... Qg2+ {[%clk 0:00:35.2]} 60. Ke1 {[%clk 0:00:15.7]} 60... Qb2
{[%clk 0:00:33.8]} 61. Ra8 {[%clk 0:00:14.7]} 61... Ke3 {[%clk 0:00:31.2]} 62.
Re8+ {[%clk 0:00:15.2]} 62... Kd3 {[%clk 0:00:31.4]} 63. Kf1 {[%clk 0:00:14.6]}
63... c5 {[%clk 0:00:30.5]} 64. Re1 {[%clk 0:00:13.2]} 64... c4 {[%clk
0:00:29.4]} 65. Rd1+ {[%clk 0:00:13.7]} 65... Ke3 {[%clk 0:00:29.7]} 66. Kg1
{[%clk 0:00:08.6]} 66... d3 {[%clk 0:00:28.4]} 67. Rf1 {[%clk 0:00:07.2]} 67...
Kf4 {[%clk 0:00:26.1]} 68. Rf2 {[%clk 0:00:05.6]} 68... Qd4 {[%clk 0:00:26.6]}
69. Kg2 {[%clk 0:00:05.5]} 69... Qg7+ {[%clk 0:00:26.8]} 70. Kf1 {[%clk
0:00:05.7]} 70... Qg3 {[%clk 0:00:26.2]} 71. Ke1 {[%clk 0:00:02.5]} 71... Ke3
{[%clk 0:00:26.2]} 72. Kd1 {[%clk 0:00:01.4]} 72... Qxf2 {[%clk 0:00:27.1]} 73.
Kc1 {[%clk 0:00:01.7]} 73... c3 {[%clk 0:00:26.9]} 74. f4 {[%clk 0:00:01.4]}
74... Kd4 {[%clk 0:00:27.6]} 75. f5 {[%clk 0:00:01.8]} 75... Ke5 {[%clk
0:00:28]} 76. f6 {[%clk 0:00:02.3]} 76... Kxf6 {[%clk 0:00:28.7]} 77. Kb1 {[%clk
0:00:02.7]} 77... Ke6 {[%clk 0:00:29.2]} 78. Ka1 {[%clk 0:00:02.7]} 78... Kd7
{[%clk 0:00:30.1]} 79. Kb1 {[%clk 0:00:03]} 79... Kc6 {[%clk 0:00:31]} 80. Ka1
{[%clk 0:00:03.9]} 80... Kb5 {[%clk 0:00:31.6]} 81. Kb1 {[%clk 0:00:04.8]} 81...
Ka4 {[%clk 0:00:32.1]} 82. Ka1 {[%clk 0:00:05.7]} 82... Kb3 {[%clk 0:00:32.5]}
83. Kb1 {[%clk 0:00:06.6]} 83... d2 {[%clk 0:00:32]} 84. Ka1 {[%clk 0:00:07.5]}
84... d1=Q# {[%clk 0:00:31.5]} 0-1

[Event "Late-Titled-Tuesday-Blitz-June-04-2024"]
[Site "Chess.com"]
[Date "2024.06.04"]
[Round "11"]
[White "ImportedItalianMaple"]
[Black "GMTalks_Youtube"]
[Result "1/2-1/2"]
[WhiteElo "2582"]
[BlackElo "2730"]
[TimeControl "180+1"]
[EndTime "16:07:00 PDT"]
[Termination "Game drawn by repetition"]

1. e4 {[%clk 0:03:00.9]} 1... e5 {[%clk 0:02:59.2]} 2. Nc3 {[%clk 0:03:00.7]}
2... Nf6 {[%clk 0:02:58.6]} 3. Bc4 {[%clk 0:03:01.2]} 3... Nc6 {[%clk
0:02:57.7]} 4. d3 {[%clk 0:03:01.1]} 4... Na5 {[%clk 0:02:57.9]} 5. Nf3 {[%clk
0:02:59.4]} 5... Nxc4 {[%clk 0:02:57]} 6. dxc4 {[%clk 0:03:00.3]} 6... d6 {[%clk
0:02:55.9]} 7. Qe2 {[%clk 0:03:00]} 7... Be7 {[%clk 0:02:52.9]} 8. Be3 {[%clk
0:02:51.2]} 8... c6 {[%clk 0:02:51.9]} 9. O-O-O {[%clk 0:02:50.8]} 9... Qa5
{[%clk 0:02:49.4]} 10. h3 {[%clk 0:02:37.1]} 10... Be6 {[%clk 0:02:38.3]} 11.
Kb1 {[%clk 0:02:26.3]} 11... Qb4 {[%clk 0:02:34]} 12. Nd2 {[%clk 0:02:12.4]}
12... O-O {[%clk 0:02:25.8]} 13. a3 {[%clk 0:02:11.4]} 13... Qa5 {[%clk
0:02:25.1]} 14. g4 {[%clk 0:02:02.8]} 14... Rfe8 {[%clk 0:02:14.4]} 15. Nb3
{[%clk 0:01:59.2]} 15... Qc7 {[%clk 0:02:13]} 16. f4 {[%clk 0:01:51.1]} 16...
exf4 {[%clk 0:02:08.7]} 17. Bxf4 {[%clk 0:01:51.4]} 17... b6 {[%clk 0:01:57.2]}
18. Qd3 {[%clk 0:01:46.3]} 18... Rad8 {[%clk 0:01:55.3]} 19. Nd4 {[%clk
0:01:45.5]} 19... Bf8 {[%clk 0:01:23.4]} 20. Nf5 {[%clk 0:01:41.1]} 20... Bxf5
{[%clk 0:01:14.4]} 21. exf5 {[%clk 0:01:41.5]} 21... Qd7 {[%clk 0:00:53.6]} 22.
Qf3 {[%clk 0:01:35.6]} 22... d5 {[%clk 0:00:46.5]} 23. cxd5 {[%clk 0:01:05.7]}
23... Nxd5 {[%clk 0:00:44.6]} 24. Nxd5 {[%clk 0:01:04.1]} 24... cxd5 {[%clk
0:00:44.4]} 25. Rd3 {[%clk 0:01:00.7]} 25... Qa4 {[%clk 0:00:39.7]} 26. Rhd1
{[%clk 0:00:58]} 26... Rc8 {[%clk 0:00:25.3]} 27. R3d2 {[%clk 0:00:26]} 27...
Qe4 {[%clk 0:00:23.8]} 28. Qxe4 {[%clk 0:00:20.5]} 28... dxe4 {[%clk 0:00:16.8]}
29. Re1 {[%clk 0:00:20.9]} 29... h5 {[%clk 0:00:15.6]} 30. Rde2 {[%clk
0:00:19.5]} 30... hxg4 {[%clk 0:00:14]} 31. hxg4 {[%clk 0:00:19.5]} 31... Rc4
{[%clk 0:00:14.6]} 32. b3 {[%clk 0:00:19.6]} 32... Rc3 {[%clk 0:00:14.5]} 33.
Rxe4 {[%clk 0:00:19.1]} 33... Rxe4 {[%clk 0:00:13.4]} 34. Rxe4 {[%clk 0:00:20]}
34... Bxa3 {[%clk 0:00:13.5]} 35. Re8+ {[%clk 0:00:18]} 35... Kh7 {[%clk
0:00:13.3]} 36. Ra8 {[%clk 0:00:18.3]} 36... a5 {[%clk 0:00:12.6]} 37. Be5
{[%clk 0:00:15.9]} 37... Re3 {[%clk 0:00:11.7]} 38. Bb2 {[%clk 0:00:15.5]} 38...
Bc5 {[%clk 0:00:10.4]} 39. f6 {[%clk 0:00:12]} 39... gxf6 {[%clk 0:00:09.7]} 40.
Bxf6 {[%clk 0:00:11.4]} 40... Kg6 {[%clk 0:00:09.1]} 41. g5 {[%clk 0:00:11.7]}
41... Kf5 {[%clk 0:00:09]} 42. Ra7 {[%clk 0:00:11]} 42... Re1+ {[%clk
0:00:08.6]} 43. Kb2 {[%clk 0:00:10.9]} 43... Kg6 {[%clk 0:00:09.3]} 44. Rc7
{[%clk 0:00:09.9]} 44... Re6 {[%clk 0:00:08.2]} 45. c3 {[%clk 0:00:08.7]} 45...
Re2+ {[%clk 0:00:07.9]} 46. Kb1 {[%clk 0:00:08.7]} 46... Ba3 {[%clk 0:00:06.7]}
47. c4 {[%clk 0:00:07.1]} 47... Bc5 {[%clk 0:00:05.1]} 48. Rc6 {[%clk
0:00:07.3]} 48... Kf5 {[%clk 0:00:05.1]} 49. Kc1 {[%clk 0:00:07]} 49... Rg2
{[%clk 0:00:04.1]} 50. Kd1 {[%clk 0:00:07.1]} 50... Be3 {[%clk 0:00:04]} 51. Ke1
{[%clk 0:00:07.1]} 51... Bxg5 {[%clk 0:00:03.8]} 52. Bxg5 {[%clk 0:00:06.6]}
52... Kxg5 {[%clk 0:00:04.1]} 53. Rxb6 {[%clk 0:00:07.4]} 53... Rb2 {[%clk
0:00:04.5]} 54. Rb5+ {[%clk 0:00:07.9]} 54... Kf4 {[%clk 0:00:04.6]} 55. Rxa5
{[%clk 0:00:07.2]} 55... Rxb3 {[%clk 0:00:05.2]} 56. Kf1 {[%clk 0:00:06.7]}
56... f5 {[%clk 0:00:05.3]} 57. c5 {[%clk 0:00:07.2]} 57... Rc3 {[%clk
0:00:05.8]} 58. Ra4+ {[%clk 0:00:07.2]} 58... Kf3 {[%clk 0:00:06.1]} 59. Ke1
{[%clk 0:00:06.6]} 59... Rxc5 {[%clk 0:00:05.9]} 60. Ra3+ {[%clk 0:00:06.5]}
60... Kf4 {[%clk 0:00:06.1]} 61. Kf2 {[%clk 0:00:06.2]} 61... Kg4 {[%clk
0:00:07]} 62. Kg2 {[%clk 0:00:06.5]} 62... Rc2+ {[%clk 0:00:07.9]} 63. Kf1
{[%clk 0:00:07]} 63... f4 {[%clk 0:00:07.7]} 64. Kg1 {[%clk 0:00:07.5]} 64...
Rb2 {[%clk 0:00:07]} 65. Kf1 {[%clk 0:00:07.9]} 65... Rb1+ {[%clk 0:00:06.6]}
66. Kf2 {[%clk 0:00:08.3]} 66... Rb2+ {[%clk 0:00:07.3]} 67. Kf1 {[%clk
0:00:08.9]} 67... Rb4 {[%clk 0:00:07]} 68. Kf2 {[%clk 0:00:09.1]} 68... Rb1
{[%clk 0:00:06.9]} 69. Kg2 {[%clk 0:00:09.3]} 69... Rb2+ {[%clk 0:00:05.8]} 70.
Kf1 {[%clk 0:00:09.9]} 1/2-1/2

[Event "Late-Titled-Tuesday-Blitz-June-04-2024"]
[Site "Chess.com"]
[Date "2024.06.04"]
[Round "11"]
[White "Jospem"]
[Black "FairChess_on_YouTube"]
[Result "0-1"]
[WhiteElo "3036"]
[BlackElo "3094"]
[TimeControl "180+1"]
[EndTime "16:07:09 PDT"]
[Termination "FairChess_on_YouTube won on time"]

1. e4 {[%clk 0:03:00.9]} 1... c5 {[%clk 0:03:00.3]} 2. Nf3 {[%clk 0:03:01]} 2...
Nc6 {[%clk 0:03:00.9]} 3. Bb5 {[%clk 0:02:55.4]} 3... Nf6 {[%clk 0:03:01]} 4.
Bxc6 {[%clk 0:02:55.5]} 4... dxc6 {[%clk 0:03:00.7]} 5. d3 {[%clk 0:02:55.9]}
5... Bg4 {[%clk 0:03:00.8]} 6. h3 {[%clk 0:02:54.8]} 6... Bh5 {[%clk 0:02:59.1]}
7. Qe2 {[%clk 0:02:48.4]} 7... Nd7 {[%clk 0:02:58.3]} 8. Nbd2 {[%clk 0:02:47.6]}
8... e5 {[%clk 0:02:57.3]} 9. Nc4 {[%clk 0:02:39.9]} 9... f6 {[%clk 0:02:57.2]}
10. a4 {[%clk 0:02:38.1]} 10... Be7 {[%clk 0:02:56.9]} 11. Ne3 {[%clk
0:02:33.2]} 11... Nf8 {[%clk 0:02:54.2]} 12. Nf5 {[%clk 0:02:24.9]} 12... Ne6
{[%clk 0:02:54.3]} 13. Be3 {[%clk 0:02:21.6]} 13... Qa5+ {[%clk 0:02:40.3]} 14.
Kf1 {[%clk 0:02:10.1]} 14... Qc7 {[%clk 0:02:33.8]} 15. g4 {[%clk 0:01:49.6]}
15... Bf7 {[%clk 0:02:33.5]} 16. Rg1 {[%clk 0:01:41.2]} 16... Bf8 {[%clk
0:02:13]} 17. g5 {[%clk 0:01:33.9]} 17... O-O-O {[%clk 0:02:09.2]} 18. gxf6
{[%clk 0:01:33.1]} 18... gxf6 {[%clk 0:02:10.1]} 19. Nh2 {[%clk 0:01:32]} 19...
Kb8 {[%clk 0:02:08.6]} 20. Ng4 {[%clk 0:01:32]} 20... Be7 {[%clk 0:01:56]} 21.
Nxe7 {[%clk 0:01:22.4]} 21... Qxe7 {[%clk 0:01:56.9]} 22. Qf3 {[%clk 0:01:22.9]}
22... c4 {[%clk 0:01:52]} 23. Qxf6 {[%clk 0:01:12.2]} 23... Qxf6 {[%clk
0:01:49.8]} 24. Nxf6 {[%clk 0:01:13.1]} 24... cxd3 {[%clk 0:01:50.1]} 25. cxd3
{[%clk 0:01:14]} 25... Rxd3 {[%clk 0:01:40.9]} 26. Ng4 {[%clk 0:01:14.4]} 26...
Rb3 {[%clk 0:01:29.6]} 27. Nxe5 {[%clk 0:01:14.6]} 27... Bh5 {[%clk 0:01:30.1]}
28. Rg3 {[%clk 0:00:45.3]} 28... Rxb2 {[%clk 0:01:24.6]} 29. a5 {[%clk
0:00:45.9]} 29... Rc8 {[%clk 0:01:07.7]} 30. Nd7+ {[%clk 0:00:37.1]} 30... Ka8
{[%clk 0:01:05]} 31. Nf6 {[%clk 0:00:25.2]} 31... Be2+ {[%clk 0:01:00.6]} 32.
Kg1 {[%clk 0:00:25.3]} 32... c5 {[%clk 0:01:00.6]} 33. Rc1 {[%clk 0:00:18.1]}
33... c4 {[%clk 0:00:58.9]} 34. Nd5 {[%clk 0:00:18.1]} 34... Bd3 {[%clk
0:00:52.6]} 35. Nc3 {[%clk 0:00:15.6]} 35... Re8 {[%clk 0:00:37.4]} 36. f4
{[%clk 0:00:15.4]} 36... b5 {[%clk 0:00:30.8]} 37. axb6 {[%clk 0:00:15.3]} 37...
axb6 {[%clk 0:00:31.5]} 38. f5 {[%clk 0:00:14.1]} 38... Nd8 {[%clk 0:00:26.3]}
39. Bf4 {[%clk 0:00:09]} 39... Kb7 {[%clk 0:00:17.9]} 40. f6 {[%clk 0:00:07.5]}
40... Ne6 {[%clk 0:00:16.9]} 41. Bd6 {[%clk 0:00:05.7]} 41... Kc6 {[%clk
0:00:15.6]} 42. f7 {[%clk 0:00:04.2]} 42... Ra8 {[%clk 0:00:15.4]} 43. Be7
{[%clk 0:00:03.9]} 43... b5 {[%clk 0:00:15.8]} 44. Rg8 {[%clk 0:00:04]} 44...
Ra7 {[%clk 0:00:14.3]} 45. Nd5 {[%clk 0:00:03.1]} 45... Bxe4 {[%clk 0:00:12.6]}
46. Rc8+ {[%clk 0:00:03]} 46... Kxd5 {[%clk 0:00:12]} 47. Rd1+ {[%clk
0:00:02.4]} 47... Bd3 {[%clk 0:00:11.2]} 48. Rd8+ {[%clk 0:00:02.3]} 48... Ke4
{[%clk 0:00:10]} 49. Re1+ {[%clk 0:00:02.9]} 49... Re2 {[%clk 0:00:09.6]} 50.
Rxe2+ {[%clk 0:00:02.6]} 50... Bxe2 {[%clk 0:00:10.5]} 51. f8=Q {[%clk
0:00:02.9]} 51... Nxf8 {[%clk 0:00:10.7]} 52. Bxf8 {[%clk 0:00:03.8]} 52... c3
{[%clk 0:00:10.7]} 53. Rc8 {[%clk 0:00:03.6]} 53... Bc4 {[%clk 0:00:10.6]} 54.
Bh6 {[%clk 0:00:04]} 54... Kd3 {[%clk 0:00:09]} 55. Re8 {[%clk 0:00:04.5]} 55...
Kc2 {[%clk 0:00:08.3]} 56. Bg7 {[%clk 0:00:02.9]} 56... b4 {[%clk 0:00:08.2]}
57. Bd4 {[%clk 0:00:02.3]} 57... Rd7 {[%clk 0:00:07.6]} 58. Bf6 {[%clk
0:00:02.7]} 58... Kb3 {[%clk 0:00:06.5]} 59. Re3 {[%clk 0:00:02.7]} 59... Rd3
{[%clk 0:00:05.8]} 60. Kf2 {[%clk 0:00:01.5]} 60... c2 {[%clk 0:00:05.3]} 61.
Re1 {[%clk 0:00:01.4]} 61... Rd1 {[%clk 0:00:04.2]} 62. Bg5 {[%clk 0:00:02.2]}
62... Kb2 {[%clk 0:00:03.9]} 63. Bf6+ {[%clk 0:00:02.6]} 63... Ka2 {[%clk
0:00:04.4]} 64. Bg5 {[%clk 0:00:02.2]} 64... Rxe1 {[%clk 0:00:04.6]} 65. Kxe1
{[%clk 0:00:02.4]} 65... Kb1 {[%clk 0:00:05.5]} 66. h4 {[%clk 0:00:02.1]} 66...
c1=Q+ {[%clk 0:00:06]} 0-1

[Event "Late-Titled-Tuesday-Blitz-June-04-2024"]
[Site "Chess.com"]
[Date "2024.06.04"]
[Round "11"]
[White "campochess"]
[Black "JaackCamel"]
[Result "1/2-1/2"]
[WhiteElo "2177"]
[BlackElo "2217"]
[TimeControl "180+1"]
[EndTime "16:07:09 PDT"]
[Termination "Game drawn by stalemate"]

1. d4 {[%clk 0:02:55.7]} 1... d5 {[%clk 0:02:59.7]} 2. Bg5 {[%clk 0:02:55.2]}
2... c5 {[%clk 0:02:57.9]} 3. dxc5 {[%clk 0:02:54.2]} 3... h6 {[%clk 0:02:56.8]}
4. Bf4 {[%clk 0:02:53.2]} 4... Nc6 {[%clk 0:02:53.4]} 5. Nf3 {[%clk 0:02:49.7]}
5... g5 {[%clk 0:02:49]} 6. Bd2 {[%clk 0:02:45.1]} 6... Bg7 {[%clk 0:02:48.6]}
7. c3 {[%clk 0:02:43.8]} 7... e5 {[%clk 0:02:43.3]} 8. Bc1 {[%clk 0:02:26.2]}
8... Nf6 {[%clk 0:02:42.1]} 9. Na3 {[%clk 0:02:25.4]} 9... O-O {[%clk
0:02:40.6]} 10. g3 {[%clk 0:02:25.4]} 10... b6 {[%clk 0:02:16.6]} 11. cxb6
{[%clk 0:02:23.7]} 11... Qxb6 {[%clk 0:02:15.9]} 12. Bg2 {[%clk 0:02:23.1]}
12... e4 {[%clk 0:02:10.1]} 13. Nd4 {[%clk 0:02:21.3]} 13... Ng4 {[%clk
0:02:04]} 14. e3 {[%clk 0:02:18.3]} 14... Nce5 {[%clk 0:01:58.6]} 15. O-O {[%clk
0:02:17]} 15... Nd3 {[%clk 0:01:55.1]} 16. c4 {[%clk 0:02:03.3]} 16... Bxd4
{[%clk 0:01:39.5]} 17. exd4 {[%clk 0:02:00.9]} 17... Qxd4 {[%clk 0:01:39.6]} 18.
cxd5 {[%clk 0:01:44.9]} 18... Ngxf2 {[%clk 0:01:38.3]} 19. Rxf2 {[%clk
0:01:35.6]} 19... Qxf2+ {[%clk 0:01:35.9]} 20. Kh1 {[%clk 0:01:35.6]} 20... Ne1
{[%clk 0:01:23.2]} 21. Qd2 {[%clk 0:01:28.6]} 21... e3 {[%clk 0:01:11]} 22. Qxf2
{[%clk 0:01:21.1]} 22... exf2 {[%clk 0:01:10.8]} 23. Be3 {[%clk 0:01:21.2]}
23... Bf5 {[%clk 0:00:52.9]} 24. Bxf2 {[%clk 0:01:20.1]} 24... Nxg2 {[%clk
0:00:52.8]} 25. Kxg2 {[%clk 0:01:18.7]} 25... Be4+ {[%clk 0:00:53.7]} 26. Kg1
{[%clk 0:01:17.7]} 26... Bxd5 {[%clk 0:00:54.6]} 27. b3 {[%clk 0:01:16.8]} 27...
a5 {[%clk 0:00:51]} 28. Nb5 {[%clk 0:01:15.9]} 28... Rfc8 {[%clk 0:00:43.4]} 29.
Nd6 {[%clk 0:01:12]} 29... Rc2 {[%clk 0:00:40]} 30. Nf5 {[%clk 0:01:11]} 30...
Be6 {[%clk 0:00:37.3]} 31. Nd4 {[%clk 0:01:06.5]} 31... Rd2 {[%clk 0:00:33.2]}
32. Re1 {[%clk 0:00:59]} 32... a4 {[%clk 0:00:30.2]} 33. Nxe6 {[%clk 0:00:55.7]}
33... fxe6 {[%clk 0:00:30.1]} 34. Rxe6 {[%clk 0:00:52.8]} 34... Rxa2 {[%clk
0:00:30]} 35. bxa4 {[%clk 0:00:50.6]} 35... R8xa4 {[%clk 0:00:24.1]} 36. Rxh6
{[%clk 0:00:47.9]} 36... Kg7 {[%clk 0:00:24]} 37. Rd6 {[%clk 0:00:45.3]} 37...
Rc2 {[%clk 0:00:21]} 38. h4 {[%clk 0:00:40.7]} 38... g4 {[%clk 0:00:19.9]} 39.
h5 {[%clk 0:00:38.8]} 39... Raa2 {[%clk 0:00:19]} 40. Bd4+ {[%clk 0:00:36.8]}
40... Kf7 {[%clk 0:00:18.2]} 41. Rf6+ {[%clk 0:00:23]} 41... Ke7 {[%clk
0:00:18.2]} 42. Rf2 {[%clk 0:00:21.5]} 42... Rxf2 {[%clk 0:00:14.9]} 43. Bxf2
{[%clk 0:00:20.7]} 43... Kf6 {[%clk 0:00:15.4]} 44. h6 {[%clk 0:00:20.4]} 44...
Kg6 {[%clk 0:00:15.2]} 45. Be3 {[%clk 0:00:20.6]} 45... Re2 {[%clk 0:00:14.7]}
46. Bf4 {[%clk 0:00:20.4]} 46... Rc2 {[%clk 0:00:13.7]} 47. Kf1 {[%clk
0:00:20.6]} 47... Ra2 {[%clk 0:00:13.1]} 48. Kg1 {[%clk 0:00:20.1]} 48... Rc2
{[%clk 0:00:07.2]} 49. Kf1 {[%clk 0:00:20.2]} 49... Rh2 {[%clk 0:00:07.1]} 50.
Kg1 {[%clk 0:00:20.2]} 50... Rxh6 {[%clk 0:00:06.9]} 51. Bxh6 {[%clk 0:00:19.2]}
51... Kxh6 {[%clk 0:00:07.3]} 52. Kf2 {[%clk 0:00:19.4]} 52... Kg5 {[%clk
0:00:05.8]} 53. Ke3 {[%clk 0:00:19.5]} 53... Kf5 {[%clk 0:00:05.6]} 54. Kd4
{[%clk 0:00:19.2]} 54... Ke6 {[%clk 0:00:03.3]} 55. Ke4 {[%clk 0:00:19.2]} 55...
Kf7 {[%clk 0:00:01.9]} 56. Kf5 {[%clk 0:00:18.7]} 56... Kg7 {[%clk 0:00:01]} 57.
Kxg4 {[%clk 0:00:18.7]} 57... Kg6 {[%clk 0:00:01.5]} 58. Kf4 {[%clk 0:00:18.7]}
58... Kf6 {[%clk 0:00:01.6]} 59. Kg4 {[%clk 0:00:15.5]} 59... Kg6 {[%clk
0:00:02]} 60. Kh3 {[%clk 0:00:15.1]} 60... Kg5 {[%clk 0:00:02.3]} 61. Kg2 {[%clk
0:00:15]} 61... Kg4 {[%clk 0:00:02.7]} 62. Kf2 {[%clk 0:00:15]} 62... Kg5 {[%clk
0:00:03.1]} 63. Kf3 {[%clk 0:00:15]} 63... Kf5 {[%clk 0:00:03.6]} 64. Ke3 {[%clk
0:00:14.4]} 64... Kg4 {[%clk 0:00:04.1]} 65. Kf2 {[%clk 0:00:14.5]} 65... Kg5
{[%clk 0:00:04.6]} 66. Kf3 {[%clk 0:00:14.6]} 66... Kf5 {[%clk 0:00:05.1]} 67.
g4+ {[%clk 0:00:13.8]} 67... Kg5 {[%clk 0:00:05.4]} 68. Kg3 {[%clk 0:00:13.8]}
68... Kg6 {[%clk 0:00:06]} 69. Kf4 {[%clk 0:00:13.9]} 69... Kf6 {[%clk
0:00:06.4]} 70. g5+ {[%clk 0:00:13.2]} 70... Kg6 {[%clk 0:00:06.9]} 71. Kg4
{[%clk 0:00:13.2]} 71... Kg7 {[%clk 0:00:07.5]} 72. Kf5 {[%clk 0:00:13.4]} 72...
Kf7 {[%clk 0:00:07.9]} 73. g6+ {[%clk 0:00:13.6]} 73... Kg7 {[%clk 0:00:08.4]}
74. Kg5 {[%clk 0:00:13.9]} 74... Kg8 {[%clk 0:00:08.6]} 75. Kf6 {[%clk 0:00:14]}
75... Kf8 {[%clk 0:00:08.9]} 76. g7+ {[%clk 0:00:13.7]} 76... Kg8 {[%clk
0:00:09.3]} 77. Kg6 {[%clk 0:00:13.9]} 1/2-1/2